Cogmind - Beta 9.6 @@@ ROGUE MODE // 2020.04.15 @ 17:26:40 Player: Aaron Result: Destroyed by L-31 Rogue with Katana Performance ------------- Evolutions (1) 500 Regions Visited (2) 400 Robots Destroyed (6) 30 Value Destroyed (113) 113 Prototype IDs (0) 0 Alien Tech Used (0) 0 Bonus (0) 0 TOTAL SCORE: 1043 Bonus ------- None Cogmind --------- Core Integrity 0/400 Matter 256/300 Energy 100/100 System Corruption 0% Temperature Cool (0) Movement Core (50) Location -9/Materials Parts ------- > --- POWER (2) -------- (None) > --- PROPULSION (3) --- (None) > --- UTILITY (2) ------ (None) > --- WEAPON (2) ------- (None) > --- INVENTORY (4) ---- Wheel Small Storage Unit Peak State ------------ > --- POWER ------------ Light Ion Engine > --- PROPULSION ------- Compact Wheel Compact Wheel > --- UTILITY ---------- Signal Interpreter Improved Terrain Scanner > --- WEAPON ----------- EM Pulse Gun Beam Rifle > --- INVENTORY -------- Wheel Small Storage Unit Mining Laser Mining Laser [Rating: 9] Favorites ----------- Power Light Ion Engine Engine Light Ion Engine Propulsion Compact Wheel Leg Aluminum Leg Wheel Compact Wheel Utility Improved Terrain Scanner Device Improved Terrain Scanner Storage Small Storage Unit Processor Signal Interpreter Weapon EM Pulse Gun Energy Gun EM Pulse Gun Ballistic Gun Assault Rifle Special Weapon Mining Laser Build | -11 -10 -9 ------- Run | Scr Mat Mat Slots Evolved 2 | . . 2 Power 1 | . . 1 Propulsion 1 | . . 1 Utility . | . . . Weapon . | . . . Parts Attached 18 | 7 7 4 Power 1 | 1 . . Engine 1 | 1 . . Core . | . . . Reactor . | . . . Propulsion 5 | 3 2 . Treads . | . . . Leg 2 | . 2 . Wheel 3 | 3 . . Hover . | . . . Flight . | . . . Utility 3 | 2 1 . Device 1 | 1 . . Storage 1 | 1 . . Processor 1 | . 1 . Hackware . | . . . Protection . | . . . Artifact . | . . . Weapon 9 | 1 4 4 Energy Gun 5 | . 3 2 Energy Cannon . | . . . Ballistic Gun 1 | 1 . . Ballistic Cannon . | . . . Launcher . | . . . Special Weapon 3 | . 1 2 Impact Weapon . | . . . Slashing Weapon . | . . . Piercing Weapon . | . . . Special Melee Weapon . | . . . Unidentified Prototypes . | . . . Parts Lost 8 | . . 8 Power 1 | . . 1 Propulsion 1 | . . 1 Utility 2 | . . 2 Weapon 4 | . . 4 Highest Loss Streak 8 | . . 8 Average Slot Usage (%) 84 | . 95 54 Engine 12 | . 14 7 Leg 5 | . 1 14 Wheel 18 | . 25 . Device 12 | . 14 9 Processor 11 | . 13 7 Energy Gun 12 | . 11 12 Ballistic Gun 7 | . 10 . Special Weapon 2 | . 2 2 Naked Turns 22 | . . 22 Heaviest Build 10 | 10 10 9 Greatest Support 32 | 32 32 20 Greatest Overweight (x) 2 | . 2 . Average Overweight (x) . | . . . Largest Inventory Capacity 6 | 6 6 4 Average Capacity 4 | 4 4 4 Most Carried 4 | 4 4 4 Average Carried 3 | . 3 3 Final Capacity 6 | 6 4 4 Final Carried 4 | 1 4 2 Class Distribution -------------------- 100% | Mutant Dominant Class ---------------- Mutant | -10/Materials Mutant | -9/Materials Resources | -11 -10 -9 ----------- Run | Scr Mat Mat Matter Collected 338 | 288 50 . Remotely . | . . . Salvage Created 259 | 111 148 . Parts 12 | 3 9 . Haulers Intercepted . | . . . Recyclers Shooed . | . . . Parts Field Recycled . | . . . Retrieved Matter . | . . . Parts Self-Destructed . | . . . Prevented . | . . . Kills | -11 -10 -9 ------- Run | Scr Mat Mat Combat Hostiles Destroyed 2 | . 2 . Guns 2 | . 2 . Classes Destroyed 4 | 2 2 . Tunneler 1 | 1 . . Recycler 1 | 1 . . Watcher 2 | . 2 . Grunt 2 | . 2 . Best Kill Streak 3 | 2 3 . Combat Bots Only 2 | . 2 . Max Kills in Single Turn 1 | 1 1 . Gunslinging . | . . . Exploded . | . . . Melee . | . . . Uniques/NPCs Destroyed . | . . . Combat | -11 -10 -9 -------- Run | Scr Mat Mat Damage Taken 775 | . 42 733 Core 411 | . . 411 Absorbed by Shields . | . . . Core Remaining (%) 100 | 100 100 . Volleys Fired 30 | 6 19 5 Largest 2 | 1 2 2 Hottest 200 | 20 96 200 Shots Fired 43 | 6 28 9 Gun 40 | 6 28 6 Cannon . | . . . Launcher . | . . . Special 3 | . . 3 Kinetic 14 | 6 8 . Thermal 8 | . 2 6 Explosive . | . . . Electromagnetic 21 | . 18 3 Robot Hit Streak 8 | 2 8 5 Robot Miss Streak 9 | 2 9 3 Penetration Max . | . . . Secondary Targets . | . . . Shots Hit Robots 22 | 3 13 6 Core Hits 13 | 3 7 3 Critical Hits . | . . . Critical Kills . | . . . Critical Parts Destroyed . | . . . Melee Attacks . | . . . Impact . | . . . Slashing . | . . . Piercing . | . . . Sneak Attacks . | . . . Combat Hostiles . | . . . Follow-up Attacks . | . . . Damage Inflicted 387 | 51 247 89 Guns 319 | 51 203 65 Cannons . | . . . Explosions 44 | . 44 . Melee . | . . . Ramming . | . . . Kinetic 98 | 51 47 . Thermal 97 | . 44 53 Explosive . | . . . Electromagnetic 192 | . 156 36 Impact . | . . . Slashing . | . . . Piercing . | . . . Highest Corruption . | . . . Average Corruption . | . . . Corruption Purged . | . . . Overload Shots . | . . . Overflow Damage . | . . . Projectiles . | . . . Explosions . | . . . Melee . | . . . Knockbacks . | . . . Impact . | . . . Kinetic . | . . . Secondary . | . . . Self-Inflicted Damage . | . . . Shots . | . . . Rammed . | . . . Targets Rammed . | . . . Kicked . | . . . Crushed . | . . . Highest Temperature 72 | . 72 61 Average Temperature 23 | . 23 23 Received Heat Transfer 132 | . 24 108 Siege Activations . | . . . Robots Corrupted . | . . . Combat Hostiles . | . . . Parts Fried 1 | . 1 . Impact Corruptions . | . . . Robots Melted . | . . . Combat Hostiles . | . . . Parts Melted . | . . . Heat Transferred 124 | . . 124 Parts Sabotaged . | . . . Parts Stolen . | . . . Parts Stripped . | . . . Power Chain Reactions 1 | . 1 . Missiles Intercepted . | . . . Alert | -11 -10 -9 ------- Run | Scr Mat Mat Peak Influence 135 | 10 135 56 Average Influence 44 | 4 53 36 Maximum Alert Level . | . . . Low Security (%) 100 | 100 100 100 Level 1 . | . . . Level 2 . | . . . Level 3 . | . . . Level 4 . | . . . Level 5 . | . . . High Security . | . . . Max Security . | . . . Squads Dispatched 1 | . 1 . Investigation 1 | . 1 . Extermination . | . . . Reinforcement . | . . . Assault . | . . . Garrison . | . . . Intercept . | . . . Construction Impeded . | . . . Haulers Reinforced . | . . . Stealth | -11 -10 -9 --------- Run | Scr Mat Mat Distress Signals . | . . . Communications Jammed . | . . . Distress Signals . | . . . Times Spotted 10 | . 8 2 Peak Tracking Total 2 | . 2 2 Tactical Retreats . | . . . Traps | -11 -10 -9 ------- Run | Scr Mat Mat Traps Triggered 1 | . 1 . Indirectly . | . . . Trap Hack Attempts . | . . . Triggered . | . . . Disarmed . | . . . Reprogrammed . | . . . Reused . | . . . Traps Extracted . | . . . Installed . | . . . Triggered . | . . . Machines | -11 -10 -9 ---------- Run | Scr Mat Mat Machines Disabled . | . . . Max in Single Turn . | . . . Machines Sabotaged . | . . . Garrisons Compromised . | . . . Overloaded Fab Kills . | . . . Fab Network Shutdowns . | . . . Hacking | -11 -10 -9 --------- Run | Scr Mat Mat Machines Accessed 4 | . 4 . Terminals 2 | . 2 . Fabricators . | . . . Repair Stations 1 | . 1 . Recycling Units 1 | . 1 . Scanalyzers . | . . . Garrison Access . | . . . Total Hacks 8 | . 8 . Successful 5 | . 5 . Failed 3 | . 3 . Catastrophic . | . . . Database Lockouts . | . . . Manual . | . . . Terminals 3 | . 3 . Fabricators . | . . . Repair Stations 3 | . 3 . Recycling Units 2 | . 2 . Scanalyzers . | . . . Garrison Access . | . . . Terminal Hacks 1 | . 1 . Zone Layout 1 | . 1 . Fabricator Hacks . | . . . Repair Station Hacks 2 | . 2 . Scan Component 1 | . 1 . Repair 1 | . 1 . Recycling Unit Hacks 2 | . 2 . Report Inventory 1 | . 1 . Retrieve Components 1 | . 1 . Scanalyzer . | . . . Garrison Access Hacks . | . . . Unauthorized Hacks . | . . . Terminals . | . . . Fabricators . | . . . Repair Stations . | . . . Recycling Units . | . . . Scanalyzers . | . . . Garrison Access . | . . . Data Cores Recovered . | . . . Used . | . . . Hacking Detections 2 | . 2 . Full Trace Events . | . . . Feedback Events . | . . . Feedback Blocked . | . . . Robot Schematics Acquired . | . . . Robots Built . | . . . Matter . | . . . Time . | . . . Total Robot Build Rating . | . . . Part Schematics Acquired . | . . . Parts Built . | . . . Matter . | . . . Time . | . . . Total Part Build Rating . | . . . Parts Repaired 1 | . 1 . Time 32 | . 32 . Parts Recycled . | . . . Recycled Matter . | . . . Retrieved Matter . | . . . Retrieved Components 1 | . 1 . Parts Scanalyzed . | . . . Part Schematics Acquired . | . . . Parts Damaged . | . . . Bothacking | -11 -10 -9 ------------ Run | Scr Mat Mat Used RIF Installer . | . . . Robots Hacked . | . . . Non-combat . | . . . Combat . | . . . Robot Hacks Applied . | . . . Relay Couplers Released . | . . . Robots Rewired . | . . . Allies Hacked . | . . . Hacks Repelled . | . . . Allies | -11 -10 -9 -------- Run | Scr Mat Mat Total Allies . | . . . Largest Group . | . . . Highest-Rated Group . | . . . Highest-Rated Ally . | . . . Total Orders . | . . . Ally Attacks . | . . . Total Damage . | . . . Kills . | . . . Allies Corrupted . | . . . Allies Melted . | . . . Intel | -11 -10 -9 ------- Run | Scr Mat Mat Robot Analysis Total . | . . . Derelict Logs Recovered . | . . . Drone Launches . | . . . Drone Recoveries . | . . . Exploration | -11 -10 -9 ------------- Run | Scr Mat Mat Turns Passed 505 | 55 330 120 Spaces Moved 329 | 40 236 53 Core 22 | 19 2 1 Treads . | . . . Legs 72 | . 20 52 Wheels 235 | 21 214 . Hover . | . . . Flight . | . . . Fastest Speed 50 | 50 100 50 Average Speed 101 | 73 102 118 Slowest Speed 150 | 100 150 120 Overloaded Moves . | . . . Propulsion Burnouts . | . . . Robots Hopped . | . . . Cave-ins Triggered . | . . . Exploration Rate (%) 18 | 3 42 11 Regions Visited 2 Branch Regions . Pre-discovered Areas . | . . . Known Exits Taken 1 | . 1 . Unknown Exits Taken 1 | 1 . . Scrap Searched . | . . . Spaces Dug . | . . . Terrain Destroyed 6 | . 4 2 Melee . | . . . Projectile 2 | . . 2 AOE 4 | . 4 . Actions | -11 -10 -9 --------- Run | Scr Mat Mat Total 449 | 59 295 95 Wait 60 | . 27 33 Move 327 | 39 235 53 Hop . | . . . Pick Up 11 | 7 4 . Fast Attach 4 | . 4 . Attach 9 | 6 1 2 Detach . | . . . Swap 5 | 1 2 2 Drop 3 | . 3 . Fire 30 | 6 19 5 Melee . | . . . Ram . | . . . Kick . | . . . Crush . | . . . Escape Stasis . | . . . Rewire . | . . . Trap . | . . . Miscellaneous . | . . . Route ------- -11/Scrapyard -10/Materials (discovered 2 exits: *Mat / [*Min]) -9/Materials History --------- Turn | Location | Event 21 | -11/Scrapyard | Discovered new exit (range 15) 56 | -11/Scrapyard | Entered Materials 208 | -10/Materials | Discovered new exit (range 12) 317 | -10/Materials | Build established: Mutant 352 | -10/Materials | Repaired Beam Rifle 374 | -10/Materials | Discovered new exit (range 8) 383 | -10/Materials | Identified exit to Materials 386 | -10/Materials | Entered another Materials area 386 | -9/Materials | Evolved 2 slots: Power x1, Propulsion x1 490 | -9/Materials | Core integrity fell below 50% 502 | -9/Materials | Core integrity fell below 20% 506 | -9/Materials | Destroyed by L-31 Rogue with Katana Last Messages --------------- 00364_ K-01 Serf collects debris. 00365_ Acquired 50 matter. 00368_ K-01 Serf collects debris. 00374_ EXIT=FOUND 00383_ EXIT=IDENTIFIED: MATERIALS PARAMETERS=POWER_1,PROPULSION_1 LOCATION=MATERIALS GOAL=ESCAPE 00442_ C-30 ARC bursts open, deploying its payload. 00442_ L-31 Rogue unfolds itself. 00453_ Mining Laser destroyed. 00458_ Aluminum Leg severed. 00460_ Mining Laser destroyed. 00463_ Lgt. Ion Engine destroyed. 00465_ U-05 Engineer builds a Wall. 00465_ Signal Interpreter destroyed. 00475_ Beam Rifle destroyed. 00475_ EM Pulse Gun destroyed. 00478_ Aluminum Leg destroyed. 00484_ Imp. Terrain Scanner destroyed. Map ----- +----------------------------------------------------+ | ?????????????????????????????????????????????????? | | ?????????????????????????????????????????????????? | | ?????????????????????????????????????????????????? | | ?????????????????????????????????????????????????? | | ?????????????????????????????????????????????????? | | ?????????????????????????????????????????????????? | | ????????????????????????????#????????????????????? | | ?????????????????????????????????????????????????? | | ????????????????????????????? ???????????????????? | | ???????????????????? ????????????????????????????? | | ???????????????? ????????#?????? ?#??????????????? | | ?????????????????????????????????????????????????? | | ????????????????????????"?????? ??#??????????????? | | ?????????????#???????? ? ??????????? ??????????? | | ?????????????????#????#????????????# #?????????? | | ?????????????????###########?????#?# #???????? ? | | ?????????????????? #?????#?# ##????????? | | ??????????????? ?#? #########%" ##????????# | | ??????????+??????# """ # " ###+###### | | ?????????????????# """"" " | | ???????????????#?# """"" / ^ % ! | | ?????????????????# """"" =# | | ?????????????????# """ ### """ """ | | ?????????????? ??# #?# """ """"" | | ?????????????????######+####?# """^ """"" | | ????????????????????# l@#### """"" | | ????????????????#???# g """ | | ????????????????????# | | ????????????????????# | | ????????????? ##########+###########+# | | ?????????????###############?#???? ???# | | ?????????????????????????????? ? ||?# """ | | ??????????#??????????????????? """ """ |||# """ | | ?????????????#???????#??#???## """ """ # """ | | ?????????????????#??????#?#### """ """ # | | ?????????????????????#????????#################### | | | | | | | | | | | | | | | | | | | | | | | | | | | | | +----------------------------------------------------+ Best States ------------- Heat Dissipation 28 Energy Generation 10 Energy Capacity 125 Matter Stores 300 Matter Capacity 300 Sight Range 16 Terrain Scan Range 16 Terrain Scan Density 10 Evasion (%) 50 Item Schematics ----------------- None Robot Schematics ------------------ None Fabricated ------------ Nothing Alien Tech Used ----------------- None Achievements -------------- None Challenges ------------ None Game ------ Seed ZioniteDisruptionAutogun Manual? 0 Play Time 00:11:45 Cumulative 6.1 hours Start 2020.04.15 @ 17:16:47 End 2020.04.15 @ 17:26:40 Sessions 1 Manual Loads 0 Difficulty Rogue Special Mode None Game No. 13 Rogue 13 Adventurer 0 Explorer 0 Win Type - Total 0 Types 0/0/0/0/0/0/0 Lore% 10 Gallery% 9 Achievement% 10 Wizard Run 0 Options --------- ASCII 0 Keyboard 0 Movement Mouse Keybinds 0 Fullscreen 1 Font 18/SmallcapsGlow Map View 76x50 Tactical HUD 1 Map Filters NONE Filters NONE Steam 1 RUN: 01e39cc2-e79d-433b-8b3e-36538b2514ac